[Event "Early-Titled-Tuesday-Blitz-June-18-2024"]
[Site "Chess.com"]
[Date "2024.06.18"]
[Round "11"]
[White "chessbaerchen"]
[Black "Likvidator228"]
[Result "1-0"]
[WhiteElo "2698"]
[BlackElo "2553"]
[TimeControl "180+1"]
[EndTime "10:08:06 PDT"]
[Termination "chessbaerchen won by checkmate"]

1. e4 {[%clk 0:03:00.9]} 1... c5 {[%clk 0:02:59.9]} 2. Nf3 {[%clk 0:02:59.8]}
2... g6 {[%clk 0:03:00.1]} 3. d4 {[%clk 0:02:58.3]} 3... cxd4 {[%clk 0:03:00.6]}
4. Nxd4 {[%clk 0:02:58.9]} 4... Bg7 {[%clk 0:03:00.8]} 5. c4 {[%clk 0:02:59.4]}
5... Nc6 {[%clk 0:03:01.5]} 6. Be3 {[%clk 0:02:59.1]} 6... Qb6 {[%clk
0:03:01.8]} 7. Nb3 {[%clk 0:02:55.4]} 7... Qd8 {[%clk 0:03:00.3]} 8. Qd2 {[%clk
0:02:55]} 8... Nf6 {[%clk 0:02:59.9]} 9. f3 {[%clk 0:02:53.4]} 9... d6 {[%clk
0:02:57.8]} 10. Nc3 {[%clk 0:02:53.7]} 10... Be6 {[%clk 0:02:54.2]} 11. Be2
{[%clk 0:02:53.5]} 11... Ne5 {[%clk 0:02:50.3]} 12. Nd5 {[%clk 0:02:51.2]} 12...
O-O {[%clk 0:02:46]} 13. O-O {[%clk 0:02:50.7]} 13... Bxd5 {[%clk 0:02:31.4]}
14. cxd5 {[%clk 0:02:49.3]} 14... a6 {[%clk 0:02:31]} 15. Rac1 {[%clk
0:02:47.3]} 15... Rc8 {[%clk 0:02:21.3]} 16. Na5 {[%clk 0:02:46.1]} 16... Rxc1
{[%clk 0:02:19.3]} 17. Rxc1 {[%clk 0:02:47]} 17... Qd7 {[%clk 0:02:14.4]} 18.
Qb4 {[%clk 0:02:41.8]} 18... b5 {[%clk 0:02:07.5]} 19. a4 {[%clk 0:02:40.8]}
19... bxa4 {[%clk 0:02:06.2]} 20. Bxa6 {[%clk 0:02:40.4]} 20... Ra8 {[%clk
0:01:55.6]} 21. Bb7 {[%clk 0:02:11.7]} 21... Rxa5 {[%clk 0:01:28.5]} 22. Rc8+
{[%clk 0:02:10.6]} 22... Bf8 {[%clk 0:01:28.5]} 23. Bh6 {[%clk 0:01:34.4]} 23...
Ne8 {[%clk 0:01:27.5]} 24. Qxa5 {[%clk 0:01:23]} 24... Bxh6 {[%clk 0:01:26.8]}
25. Qa8 {[%clk 0:01:16.9]} 25... Kf8 {[%clk 0:01:22.6]} 26. Bc6 {[%clk
0:01:15.1]} 26... Nxc6 {[%clk 0:01:22.3]} 27. dxc6 {[%clk 0:01:15.6]} 27... Be3+
{[%clk 0:01:12.6]} 28. Kh1 {[%clk 0:01:05.8]} 28... Qe6 {[%clk 0:01:13.1]} 29.
Rxe8+ {[%clk 0:01:05.3]} 29... Kg7 {[%clk 0:01:12.7]} 30. Qxa4 {[%clk
0:00:45.6]} 30... Qe5 {[%clk 0:01:12]} 31. Qc2 {[%clk 0:00:36.7]} 31... Qb5
{[%clk 0:00:59.6]} 32. Qc3+ {[%clk 0:00:34.3]} 32... e5 {[%clk 0:00:56.1]} 33.
Qxe3 {[%clk 0:00:32.1]} 33... Qxc6 {[%clk 0:00:56.4]} 34. Rd8 {[%clk 0:00:30.7]}
34... h6 {[%clk 0:00:51.9]} 35. h4 {[%clk 0:00:29.4]} 35... Qc7 {[%clk
0:00:50.5]} 36. Ra8 {[%clk 0:00:28.1]} 36... Qe7 {[%clk 0:00:50.4]} 37. g3
{[%clk 0:00:27.3]} 37... Qb7 {[%clk 0:00:50.9]} 38. Ra2 {[%clk 0:00:26.1]} 38...
d5 {[%clk 0:00:50.6]} 39. exd5 {[%clk 0:00:23.2]} 39... Qxd5 {[%clk 0:00:50.6]}
40. b3 {[%clk 0:00:23.7]} 40... Qe6 {[%clk 0:00:44.3]} 41. Ra5 {[%clk
0:00:22.3]} 41... Qh3+ {[%clk 0:00:44.2]} 42. Kg1 {[%clk 0:00:22.8]} 42... Qxg3+
{[%clk 0:00:44.8]} 43. Kf1 {[%clk 0:00:23.4]} 43... Qh3+ {[%clk 0:00:44.9]} 44.
Ke2 {[%clk 0:00:21.8]} 44... Qh2+ {[%clk 0:00:43.5]} 45. Kd3 {[%clk 0:00:20.4]}
45... Qxh4 {[%clk 0:00:40.4]} 46. Qxe5+ {[%clk 0:00:20]} 46... Kh7 {[%clk
0:00:40.9]} 47. Ra7 {[%clk 0:00:18.8]} 47... Qd8+ {[%clk 0:00:39]} 48. Ke2
{[%clk 0:00:16.5]} 48... Kg8 {[%clk 0:00:34.9]} 49. Qe4 {[%clk 0:00:13.4]} 49...
Qb6 {[%clk 0:00:29.3]} 50. Ra8+ {[%clk 0:00:12.4]} 50... Kg7 {[%clk 0:00:29.7]}
51. Qe5+ {[%clk 0:00:12.8]} 51... f6 {[%clk 0:00:28.6]} 52. Qe7# {[%clk
0:00:12.9]} 1-0

[Event "Early-Titled-Tuesday-Blitz-June-18-2024"]
[Site "Chess.com"]
[Date "2024.06.18"]
[Round "11"]
[White "xasid81"]
[Black "ShahMatKanal"]
[Result "0-1"]
[WhiteElo "2596"]
[BlackElo "2498"]
[TimeControl "180+1"]
[EndTime "10:08:06 PDT"]
[Termination "ShahMatKanal won by resignation"]

1. c4 {[%clk 0:01:45.5]} 1... e6 {[%clk 0:02:58.9]} 2. g3 {[%clk 0:01:42.9]}
2... d5 {[%clk 0:02:59.3]} 3. Bg2 {[%clk 0:01:42.6]} 3... Nf6 {[%clk 0:02:59.9]}
4. Nf3 {[%clk 0:01:42.4]} 4... Be7 {[%clk 0:03:00.4]} 5. O-O {[%clk 0:01:42.3]}
5... O-O {[%clk 0:03:00.8]} 6. b3 {[%clk 0:01:42.1]} 6... b6 {[%clk 0:02:59.7]}
7. Bb2 {[%clk 0:01:41.3]} 7... Bb7 {[%clk 0:02:59.9]} 8. d4 {[%clk 0:01:41.5]}
8... Nbd7 {[%clk 0:02:59.6]} 9. Nc3 {[%clk 0:01:37.5]} 9... c5 {[%clk
0:02:51.8]} 10. cxd5 {[%clk 0:01:36.9]} 10... Nxd5 {[%clk 0:02:45.7]} 11. Nxd5
{[%clk 0:01:33.4]} 11... Bxd5 {[%clk 0:02:44.9]} 12. Re1 {[%clk 0:01:28.5]}
12... cxd4 {[%clk 0:02:43]} 13. Nxd4 {[%clk 0:01:27.5]} 13... Bxg2 {[%clk
0:02:42]} 14. Kxg2 {[%clk 0:01:28.4]} 14... Qc7 {[%clk 0:02:37.3]} 15. Rc1
{[%clk 0:01:26]} 15... Qb7+ {[%clk 0:02:37]} 16. Kg1 {[%clk 0:01:26.5]} 16...
Rac8 {[%clk 0:02:32.4]} 17. Qd3 {[%clk 0:01:21.6]} 17... Nf6 {[%clk 0:02:25.4]}
18. Qf3 {[%clk 0:01:13.2]} 18... Qxf3 {[%clk 0:02:18.7]} 19. exf3 {[%clk
0:01:14.1]} 19... Bc5 {[%clk 0:02:04.6]} 20. Nb5 {[%clk 0:01:10.4]} 20... a6
{[%clk 0:02:03.7]} 21. Nc3 {[%clk 0:01:01]} 21... Bb4 {[%clk 0:01:58.4]} 22.
Red1 {[%clk 0:01:00.8]} 22... Bxc3 {[%clk 0:01:54.4]} 23. Bxc3 {[%clk 0:00:58]}
23... Nd5 {[%clk 0:01:54.6]} 24. Bd4 {[%clk 0:00:57.9]} 24... Rfd8 {[%clk
0:01:42.3]} 25. f4 {[%clk 0:00:47.9]} 25... Kf8 {[%clk 0:01:40.7]} 26. Bb2
{[%clk 0:00:41.2]} 26... g6 {[%clk 0:01:33.9]} 27. Kf1 {[%clk 0:00:40.2]} 27...
Ke7 {[%clk 0:01:32.4]} 28. Ke1 {[%clk 0:00:38.4]} 28... Rxc1 {[%clk 0:01:30.7]}
29. Rxc1 {[%clk 0:00:37.5]} 29... Kd7 {[%clk 0:01:30.7]} 30. Ke2 {[%clk
0:00:19.3]} 30... h5 {[%clk 0:01:29.5]} 31. Kf3 {[%clk 0:00:16]} 31... Rc8
{[%clk 0:01:26.8]} 32. Rxc8 {[%clk 0:00:15.2]} 32... Kxc8 {[%clk 0:01:27.7]} 33.
Ke4 {[%clk 0:00:14.7]} 33... Kd7 {[%clk 0:01:27.7]} 34. Ke5 {[%clk 0:00:13.6]}
34... Kc6 {[%clk 0:01:25]} 35. a3 {[%clk 0:00:11.6]} 35... Kc5 {[%clk
0:01:18.2]} 36. Bd4+ {[%clk 0:00:10.5]} 36... Kc6 {[%clk 0:01:18.3]} 37. f3
{[%clk 0:00:09.5]} 37... Kd7 {[%clk 0:01:14.7]} 38. h4 {[%clk 0:00:08]} 38...
f6+ {[%clk 0:01:05.2]} 39. Ke4 {[%clk 0:00:08.1]} 39... Kd6 {[%clk 0:01:06.1]}
40. Kd3 {[%clk 0:00:06.7]} 40... Kc6 {[%clk 0:00:57.3]} 41. Ke4 {[%clk
0:00:05.7]} 41... Kd6 {[%clk 0:00:57.3]} 42. Kd3 {[%clk 0:00:05.9]} 42... b5
{[%clk 0:00:51.7]} 43. Bb2 {[%clk 0:00:03.9]} 43... Kc6 {[%clk 0:00:48.2]} 44.
Ke4 {[%clk 0:00:04.3]} 44... Kd6 {[%clk 0:00:47.9]} 45. g4 {[%clk 0:00:04.6]}
45... f5+ {[%clk 0:00:44.5]} 46. gxf5 {[%clk 0:00:05]} 46... gxf5+ {[%clk
0:00:42.3]} 47. Kd4 {[%clk 0:00:04.7]} 47... Nxf4 {[%clk 0:00:42.1]} 48. Ke3
{[%clk 0:00:04.7]} 48... Ng2+ {[%clk 0:00:41.6]} 49. Kf2 {[%clk 0:00:04.3]}
49... Nxh4 {[%clk 0:00:41.3]} 50. Bc1 {[%clk 0:00:04.3]} 50... Ng6 {[%clk
0:00:40.8]} 51. Kg3 {[%clk 0:00:05.1]} 51... Kd5 {[%clk 0:00:39.9]} 0-1

[Event "Early-Titled-Tuesday-Blitz-June-18-2024"]
[Site "Chess.com"]
[Date "2024.06.18"]
[Round "11"]
[White "Chempiblinka"]
[Black "andrzej"]
[Result "1-0"]
[WhiteElo "2372"]
[BlackElo "2450"]
[TimeControl "180+1"]
[EndTime "10:08:06 PDT"]
[Termination "Chempiblinka won on time"]

1. Nf3 {[%clk 0:02:59.2]} 1... d5 {[%clk 0:02:59.8]} 2. g3 {[%clk 0:02:59.7]}
2... c5 {[%clk 0:02:59.9]} 3. Bg2 {[%clk 0:03:00.3]} 3... Nc6 {[%clk 0:03:00.4]}
4. O-O {[%clk 0:03:00.5]} 4... e5 {[%clk 0:03:00.3]} 5. d3 {[%clk 0:03:01.1]}
5... Be7 {[%clk 0:03:00.4]} 6. c4 {[%clk 0:02:59.6]} 6... d4 {[%clk 0:02:59.5]}
7. e3 {[%clk 0:03:00.1]} 7... h5 {[%clk 0:02:58.8]} 8. exd4 {[%clk 0:02:59.4]}
8... exd4 {[%clk 0:02:58.8]} 9. Bf4 {[%clk 0:02:57.2]} 9... h4 {[%clk
0:02:57.2]} 10. Re1 {[%clk 0:02:49.8]} 10... Kf8 {[%clk 0:02:56.9]} 11. Ne5
{[%clk 0:02:43]} 11... Nxe5 {[%clk 0:02:53.5]} 12. Rxe5 {[%clk 0:02:39.5]} 12...
Nf6 {[%clk 0:02:41.1]} 13. Nd2 {[%clk 0:02:31.7]} 13... Bd6 {[%clk 0:02:36.8]}
14. Qe2 {[%clk 0:02:09.2]} 14... Bxe5 {[%clk 0:02:34.7]} 15. Qxe5 {[%clk
0:02:10.1]} 15... Rh5 {[%clk 0:02:20.6]} 16. Qe2 {[%clk 0:02:02.8]} 16... Bg4
{[%clk 0:02:13.7]} 17. f3 {[%clk 0:02:03.2]} 17... Be6 {[%clk 0:02:11.6]} 18.
Re1 {[%clk 0:02:02.1]} 18... h3 {[%clk 0:02:08.1]} 19. Bh1 {[%clk 0:02:01.2]}
19... Qd7 {[%clk 0:02:01.9]} 20. Be5 {[%clk 0:01:57.4]} 20... Rh6 {[%clk
0:01:55.7]} 21. g4 {[%clk 0:01:52.6]} 21... Rg6 {[%clk 0:01:51.2]} 22. Kf2
{[%clk 0:01:49.6]} 22... Re8 {[%clk 0:01:50.3]} 23. Rg1 {[%clk 0:01:48.3]} 23...
b5 {[%clk 0:01:28.6]} 24. b3 {[%clk 0:01:47.4]} 24... bxc4 {[%clk 0:01:28.4]}
25. bxc4 {[%clk 0:01:47.5]} 25... Qa4 {[%clk 0:01:26.4]} 26. g5 {[%clk
0:01:45.5]} 26... Nd7 {[%clk 0:01:19.3]} 27. Bd6+ {[%clk 0:01:44.5]} 27... Kg8
{[%clk 0:01:19.6]} 28. Ne4 {[%clk 0:01:41.4]} 28... Bf5 {[%clk 0:01:15.7]} 29.
Bg3 {[%clk 0:01:25.5]} 29... Rxg5 {[%clk 0:01:06.1]} 30. Rb1 {[%clk 0:01:16.1]}
30... Nf6 {[%clk 0:00:49.9]} 31. Nxf6+ {[%clk 0:01:15.3]} 31... gxf6 {[%clk
0:00:50.7]} 32. Qd2 {[%clk 0:01:06.1]} 32... Re3 {[%clk 0:00:50.8]} 33. Bf4
{[%clk 0:01:04.9]} 33... Rxd3 {[%clk 0:00:46.3]} 34. Rb8+ {[%clk 0:01:05.5]}
34... Kh7 {[%clk 0:00:45.4]} 35. Qe2 {[%clk 0:00:59.3]} 35... Rg2+ {[%clk
0:00:30.5]} 36. Bxg2 {[%clk 0:00:50.1]} 36... hxg2 {[%clk 0:00:31.4]} 37. Kxg2
{[%clk 0:00:50.4]} 37... Rc3 {[%clk 0:00:17.6]} 38. Qf2 {[%clk 0:00:49.1]} 38...
Rc2 {[%clk 0:00:15.1]} 39. Bd2 {[%clk 0:00:49.2]} 39... Rxd2 {[%clk 0:00:05.1]}
40. Qxd2 {[%clk 0:00:46.9]} 40... Qc2 {[%clk 0:00:02.4]} 41. Qxc2 {[%clk
0:00:46.1]} 41... Bxc2 {[%clk 0:00:03.3]} 42. Kf2 {[%clk 0:00:43.4]} 42... Kg6
{[%clk 0:00:02.3]} 43. Rc8 {[%clk 0:00:41.5]} 43... Bb1 {[%clk 0:00:01.1]} 44.
a3 {[%clk 0:00:39.7]} 1-0

[Event "Early-Titled-Tuesday-Blitz-June-18-2024"]
[Site "Chess.com"]
[Date "2024.06.18"]
[Round "11"]
[White "SpongeBob_03"]
[Black "JunjiCol"]
[Result "1-0"]
[WhiteElo "2232"]
[BlackElo "2319"]
[TimeControl "180+1"]
[EndTime "10:08:06 PDT"]
[Termination "SpongeBob_03 won by resignation"]

1. e4 {[%clk 0:03:00.9]} 1... e5 {[%clk 0:02:56.5]} 2. Nf3 {[%clk 0:03:00.2]}
2... d5 {[%clk 0:02:56.5]} 3. Nxe5 {[%clk 0:02:46.1]} 3... Nf6 {[%clk
0:02:38.3]} 4. d4 {[%clk 0:02:43.3]} 4... Bd6 {[%clk 0:02:31.4]} 5. Bg5 {[%clk
0:02:21.4]} 5... dxe4 {[%clk 0:02:26.5]} 6. Nc3 {[%clk 0:01:54.6]} 6... O-O
{[%clk 0:02:17.1]} 7. Bc4 {[%clk 0:01:46.6]} 7... Nbd7 {[%clk 0:02:07.6]} 8.
Nxd7 {[%clk 0:01:40.8]} 8... Bxd7 {[%clk 0:02:06.9]} 9. Nd5 {[%clk 0:01:26.8]}
9... Be7 {[%clk 0:02:02]} 10. Nxe7+ {[%clk 0:01:26.2]} 10... Qxe7 {[%clk
0:02:01.9]} 11. Qe2 {[%clk 0:01:23.9]} 11... h6 {[%clk 0:02:00.2]} 12. Bf4
{[%clk 0:01:17.7]} 12... Qb4+ {[%clk 0:01:57.9]} 13. c3 {[%clk 0:01:16.7]} 13...
Qb6 {[%clk 0:01:56.6]} 14. O-O {[%clk 0:01:14]} 14... Bg4 {[%clk 0:01:56.3]} 15.
Qe3 {[%clk 0:01:11.4]} 15... Bf5 {[%clk 0:01:48]} 16. Be5 {[%clk 0:01:07.8]}
16... Ng4 {[%clk 0:01:43.7]} 17. Qf4 {[%clk 0:01:07.9]} 17... Nxe5 {[%clk
0:01:43.2]} 18. Qxe5 {[%clk 0:01:07.7]} 18... Bg6 {[%clk 0:01:37.6]} 19. b3
{[%clk 0:01:01.3]} 19... Rfe8 {[%clk 0:01:35.5]} 20. Qg3 {[%clk 0:01:01.1]}
20... Qf6 {[%clk 0:01:28.8]} 21. Rfe1 {[%clk 0:00:59.2]} 21... Rac8 {[%clk
0:01:22.6]} 22. Re3 {[%clk 0:00:57.5]} 22... c5 {[%clk 0:01:17.1]} 23. dxc5
{[%clk 0:00:48]} 23... Rxc5 {[%clk 0:01:16]} 24. a4 {[%clk 0:00:40.2]} 24... a6
{[%clk 0:01:06.4]} 25. Rd1 {[%clk 0:00:36.5]} 25... b5 {[%clk 0:00:58.3]} 26.
axb5 {[%clk 0:00:35.5]} 26... axb5 {[%clk 0:00:58]} 27. Rd6 {[%clk 0:00:36]}
27... Qg5 {[%clk 0:00:38.2]} 28. Rxg6 {[%clk 0:00:27.6]} 28... Qxg3 {[%clk
0:00:34.2]} 29. Rexg3 {[%clk 0:00:28.5]} 29... bxc4 {[%clk 0:00:32.7]} 30. Rxg7+
{[%clk 0:00:27.5]} 30... Kh8 {[%clk 0:00:24]} 31. bxc4 {[%clk 0:00:27.1]} 31...
Rxc4 {[%clk 0:00:23]} 32. Rxf7 {[%clk 0:00:25.4]} 32... Rec8 {[%clk 0:00:19]}
33. Rf6 {[%clk 0:00:19.6]} 33... Kh7 {[%clk 0:00:17.5]} 34. Rgg6 {[%clk
0:00:16.1]} 34... Rxc3 {[%clk 0:00:16.5]} 35. Rxh6+ {[%clk 0:00:16.5]} 35... Kg7
{[%clk 0:00:16.8]} 36. h3 {[%clk 0:00:17.1]} 36... e3 {[%clk 0:00:15.9]} 37.
Rfg6+ {[%clk 0:00:16.7]} 37... Kf7 {[%clk 0:00:15.4]} 38. Rf6+ {[%clk 0:00:17]}
38... Kg7 {[%clk 0:00:15.4]} 39. fxe3 {[%clk 0:00:16.8]} 39... Rxe3 {[%clk
0:00:14.9]} 40. Rfg6+ {[%clk 0:00:17.5]} 40... Kf7 {[%clk 0:00:14.9]} 41. Ra6
{[%clk 0:00:18.4]} 41... Rc7 {[%clk 0:00:13.4]} 42. Rh7+ {[%clk 0:00:18.3]}
42... Kg8 {[%clk 0:00:12.4]} 43. Rxc7 {[%clk 0:00:19.2]} 1-0

[Event "Early-Titled-Tuesday-Blitz-June-18-2024"]
[Site "Chess.com"]
[Date "2024.06.18"]
[Round "11"]
[White "DeArron_Fox"]
[Black "WilliamAlfaroCaracas"]
[Result "1-0"]
[WhiteElo "2465"]
[BlackElo "2354"]
[TimeControl "180+1"]
[EndTime "10:08:14 PDT"]
[Termination "DeArron_Fox won by resignation"]

1. d4 {[%clk 0:03:00.9]} 1... Nf6 {[%clk 0:02:54.3]} 2. c4 {[%clk 0:02:58.7]}
2... c5 {[%clk 0:02:51]} 3. d5 {[%clk 0:02:56.5]} 3... b5 {[%clk 0:02:49.7]} 4.
cxb5 {[%clk 0:02:57.4]} 4... a6 {[%clk 0:02:48.8]} 5. bxa6 {[%clk 0:02:58.3]}
5... g6 {[%clk 0:02:48]} 6. Nc3 {[%clk 0:02:57.9]} 6... Bg7 {[%clk 0:02:45.5]}
7. e4 {[%clk 0:02:57.7]} 7... O-O {[%clk 0:02:46.2]} 8. a7 {[%clk 0:02:57.9]}
8... Rxa7 {[%clk 0:02:44.9]} 9. Nf3 {[%clk 0:02:58.4]} 9... e6 {[%clk
0:02:19.8]} 10. Be2 {[%clk 0:02:52.4]} 10... exd5 {[%clk 0:02:19]} 11. exd5
{[%clk 0:02:53.3]} 11... d6 {[%clk 0:02:18.4]} 12. O-O {[%clk 0:02:51.8]} 12...
Re8 {[%clk 0:02:18.1]} 13. h3 {[%clk 0:02:49.8]} 13... Rae7 {[%clk 0:02:16.7]}
14. Bb5 {[%clk 0:02:42.8]} 14... Bd7 {[%clk 0:02:15.9]} 15. Bf4 {[%clk
0:02:41.8]} 15... Ne4 {[%clk 0:02:11.3]} 16. Bxd7 {[%clk 0:02:25.6]} 16... Nxd7
{[%clk 0:01:45.2]} 17. Qd3 {[%clk 0:02:16.8]} 17... Qb6 {[%clk 0:01:34.8]} 18.
Rab1 {[%clk 0:02:07.1]} 18... Ndf6 {[%clk 0:01:26.7]} 19. Rfe1 {[%clk
0:01:52.5]} 19... Qa5 {[%clk 0:01:12.3]} 20. Nxe4 {[%clk 0:01:43.1]} 20... Nxe4
{[%clk 0:01:10.1]} 21. a3 {[%clk 0:01:36.8]} 21... Qa4 {[%clk 0:01:00]} 22. Re3
{[%clk 0:01:01.8]} 22... h6 {[%clk 0:00:52.7]} 23. b3 {[%clk 0:00:56.7]} 23...
Qxa3 {[%clk 0:00:51.5]} 24. Rbe1 {[%clk 0:00:55.9]} 24... f5 {[%clk 0:00:50.2]}
25. Bxd6 {[%clk 0:00:21.3]} 25... Rd7 {[%clk 0:00:49.3]} 26. Bf4 {[%clk
0:00:15.1]} 26... Qa8 {[%clk 0:00:39.1]} 27. d6 {[%clk 0:00:12.3]} 27... Qc6
{[%clk 0:00:35.8]} 28. Nd2 {[%clk 0:00:07.6]} 28... Bd4 {[%clk 0:00:18.5]} 29.
Nxe4 {[%clk 0:00:07.4]} 29... fxe4 {[%clk 0:00:15.5]} 30. Rxe4 {[%clk
0:00:07.4]} 30... Rxe4 {[%clk 0:00:15]} 31. Rxe4 {[%clk 0:00:07.4]} 31... Kf7
{[%clk 0:00:12.7]} 32. Qc4+ {[%clk 0:00:07.1]} 32... Kg7 {[%clk 0:00:12.3]} 33.
Re7+ {[%clk 0:00:06.6]} 33... Rxe7 {[%clk 0:00:12]} 34. dxe7 {[%clk 0:00:07.5]}
34... Qd7 {[%clk 0:00:10]} 35. Qe2 {[%clk 0:00:05.2]} 35... Kf7 {[%clk
0:00:09.6]} 36. Bxh6 {[%clk 0:00:03.6]} 36... Qxe7 {[%clk 0:00:09.5]} 37. Qxe7+
{[%clk 0:00:04.5]} 37... Kxe7 {[%clk 0:00:10.1]} 38. Be3 {[%clk 0:00:04.6]}
38... Ke6 {[%clk 0:00:09.5]} 39. Bxd4 {[%clk 0:00:04.7]} 39... cxd4 {[%clk
0:00:09.2]} 40. Kf1 {[%clk 0:00:05.6]} 40... Kd5 {[%clk 0:00:09.7]} 41. Ke2
{[%clk 0:00:06.5]} 41... Kc5 {[%clk 0:00:10.3]} 42. Kd3 {[%clk 0:00:06.8]} 42...
Kb4 {[%clk 0:00:11]} 43. Kxd4 {[%clk 0:00:07.7]} 43... Kxb3 {[%clk 0:00:11.6]}
44. Ke5 {[%clk 0:00:08.5]} 44... Kc4 {[%clk 0:00:12]} 45. Kf6 {[%clk 0:00:09.4]}
45... Kd4 {[%clk 0:00:12.2]} 46. Kxg6 {[%clk 0:00:09.5]} 46... Ke4 {[%clk
0:00:12.9]} 47. h4 {[%clk 0:00:10]} 47... Kf4 {[%clk 0:00:13.6]} 48. h5 {[%clk
0:00:10.3]} 1-0

[Event "Early-Titled-Tuesday-Blitz-June-18-2024"]
[Site "Chess.com"]
[Date "2024.06.18"]
[Round "11"]
[White "edgarhay012"]
[Black "temus_galaktionov"]
[Result "0-1"]
[WhiteElo "2701"]
[BlackElo "2864"]
[TimeControl "180+1"]
[EndTime "10:08:15 PDT"]
[Termination "temus_galaktionov won by resignation"]

1. e4 {[%clk 0:03:00.9]} 1... c6 {[%clk 0:03:00.9]} 2. d4 {[%clk 0:03:00.8]}
2... g6 {[%clk 0:03:01.6]} 3. Nc3 {[%clk 0:03:01.4]} 3... Bg7 {[%clk 0:03:02.5]}
4. h4 {[%clk 0:03:01.1]} 4... d6 {[%clk 0:03:03.4]} 5. h5 {[%clk 0:03:01.4]}
5... Qb6 {[%clk 0:03:03.7]} 6. Nf3 {[%clk 0:02:59]} 6... Bg4 {[%clk 0:03:01.4]}
7. h6 {[%clk 0:02:51.4]} 7... Bf6 {[%clk 0:02:59]} 8. Be3 {[%clk 0:02:45.8]}
8... Qxb2 {[%clk 0:02:57]} 9. Na4 {[%clk 0:02:45.9]} 9... Qa3 {[%clk 0:02:56.6]}
10. c3 {[%clk 0:02:39.3]} 10... b5 {[%clk 0:02:55.7]} 11. e5 {[%clk 0:02:39.3]}
11... dxe5 {[%clk 0:02:50]} 12. Nc5 {[%clk 0:02:06.9]} 12... Bxf3 {[%clk
0:02:36.1]} 13. gxf3 {[%clk 0:02:00.4]} 13... Qxc3+ {[%clk 0:02:32.6]} 14. Bd2
{[%clk 0:01:59.1]} 14... Qxd4 {[%clk 0:02:32.3]} 15. Nb3 {[%clk 0:01:58.5]}
15... Qd5 {[%clk 0:02:27.8]} 16. Rc1 {[%clk 0:01:57]} 16... Nd7 {[%clk
0:02:16.5]} 17. Qc2 {[%clk 0:01:55.7]} 17... Rc8 {[%clk 0:02:12.4]} 18. Bd3
{[%clk 0:01:52.6]} 18... Qe6 {[%clk 0:01:54.4]} 19. Bxb5 {[%clk 0:01:41.7]}
19... Nb8 {[%clk 0:01:54]} 20. Bd3 {[%clk 0:01:37.7]} 20... e4 {[%clk
0:01:49.2]} 21. Bxe4 {[%clk 0:01:35.6]} 21... Be5 {[%clk 0:01:46.9]} 22. Nc5
{[%clk 0:01:33]} 22... Qd6 {[%clk 0:01:37.9]} 23. Nb7 {[%clk 0:00:59]} 23... Qc7
{[%clk 0:01:23.3]} 24. Rb1 {[%clk 0:00:23.4]} 24... Nf6 {[%clk 0:01:19.7]} 25.
Ba5 {[%clk 0:00:24]} 25... Qd7 {[%clk 0:01:19.1]} 26. Nc5 {[%clk 0:00:24.4]}
26... Qd4 {[%clk 0:01:11.9]} 27. Rd1 {[%clk 0:00:16.7]} 27... Qb2 {[%clk
0:01:11.6]} 28. Qxb2 {[%clk 0:00:06.2]} 28... Bxb2 {[%clk 0:01:12.5]} 29. Bc2
{[%clk 0:00:03.8]} 29... Ba3 {[%clk 0:01:08.1]} 30. Nd3 {[%clk 0:00:01.9]} 30...
Nbd7 {[%clk 0:01:02]} 31. Ke2 {[%clk 0:00:02.1]} 31... Nd5 {[%clk 0:01:01.7]}
32. Bb3 {[%clk 0:00:01.7]} 32... e6 {[%clk 0:00:57.9]} 33. Bd2 {[%clk
0:00:01.5]} 33... Ke7 {[%clk 0:00:56.3]} 34. Nf4 {[%clk 0:00:01.4]} 34... N7b6
{[%clk 0:00:53.8]} 35. Nxd5+ {[%clk 0:00:01.9]} 35... cxd5 {[%clk 0:00:48.6]}
36. Bg5+ {[%clk 0:00:02.6]} 36... f6 {[%clk 0:00:48.9]} 37. Be3 {[%clk
0:00:03.5]} 37... Rc7 {[%clk 0:00:45.8]} 38. f4 {[%clk 0:00:04.1]} 38... Rhc8
{[%clk 0:00:43.5]} 39. Bd4 {[%clk 0:00:04.7]} 39... f5 {[%clk 0:00:39]} 40. Be5
{[%clk 0:00:04.5]} 40... Bd6 {[%clk 0:00:38.9]} 41. Bd4 {[%clk 0:00:03.4]} 41...
Bxf4 {[%clk 0:00:38.4]} 42. a4 {[%clk 0:00:04]} 42... Nc4 {[%clk 0:00:37.7]} 43.
Rd3 {[%clk 0:00:02]} 43... Na5 {[%clk 0:00:34.6]} 44. Bd1 {[%clk 0:00:01.4]}
44... Rb7 {[%clk 0:00:32.4]} 45. Bb2 {[%clk 0:00:02]} 45... Rxb2+ {[%clk
0:00:31.1]} 46. Kf3 {[%clk 0:00:02.9]} 46... Bd6 {[%clk 0:00:30.6]} 47. Re1
{[%clk 0:00:03.8]} 47... Kf6 {[%clk 0:00:28.7]} 48. Kg2 {[%clk 0:00:04.1]} 48...
Rc4 {[%clk 0:00:27.4]} 49. Be2 {[%clk 0:00:04.7]} 49... Re4 {[%clk 0:00:27.3]}
50. Re3 {[%clk 0:00:04.7]} 50... Rxe3 {[%clk 0:00:27.1]} 51. fxe3 {[%clk
0:00:05.6]} 51... Bb4 {[%clk 0:00:27.3]} 52. Rb1 {[%clk 0:00:06.5]} 0-1